bitfinex/quotes_ETHUSD_20240604
["timestamp","ask_amount","ask_price","bid_price","bid_amount"]
[1717463389715,0.11199086,3761.1,3761.0,0.1262]
[1717463390026,0.55507306,3761.2,3761.0,0.1262]
[1717463390249,0.11199086,3761.1,3761.0,0.1262]
[1717463390455,0.42118984,3761.1,3761.0,0.1262]
[1717463390774,0.30919898,3761.1,3761.0,0.1262]
[1717463392072,0.86427204,3761.1,3760.7,0.1262]
[1717463392267,0.55507306,3761.1,3760.7,0.1262]
[1717463392450,0.30932581,3761.0,3760.7,0.1262]
[1717463392645,0.55507306,3761.1,3760.7,0.1262]
[1717463392819,0.30939159,3761.0,3760.7,0.1262]
[1717463393023,0.55507306,3761.1,3760.7,0.1262]
[1717463393256,0.30938116,3761.0,3760.7,0.1262]
[1717463393466,0.55507306,3761.0,3760.7,0.1262]
[1717463394284,0.30956825,3760.9,3760.6,0.1262]
[1717463394425,0.11202033,3760.9,3760.8,0.6942]
[1717463394624,0.4215895,3760.9,3760.8,0.6942]
[1717463395354,0.30956917,3760.9,3760.8,0.6942]
[1717463395535,0.30956917,3760.9,3760.8,0.1262]
[1717463395728,0.86464223,3760.9,3760.8,0.1262]
[1717463396093,0.89677296,3760.9,3760.8,0.1262]
[1717463396388,1.7328653,3760.9,3760.8,0.1262]
[1717463397383,1.47915462,3760.9,3760.8,0.1262]
[1717463397539,0.69440199,3760.9,3760.8,0.1262]
[1717463397736,0.94747896,3760.9,3760.8,0.1262]
[1717463398742,0.94747896,3760.9,3760.6,0.1262]
[1717463398970,0.55709632,3760.7,3760.6,0.1262]
[1717463399356,0.66920144,3760.7,3760.6,0.1262]
[1717463400290,0.66920144,3760.7,3760.6,0.636073]
[1717463400597,0.66920144,3760.7,3760.5,2.3133]
[1717463400598,0.66949724,3760.7,3760.5,0.1262]
[1717463400878,0.55740219,3760.6,3760.5,0.1262]
[1717463401100,0.94758954,3760.6,3760.5,0.1262]
[1717463401440,0.11213091,3760.6,3760.5,0.1262]
[1717463401687,0.94758954,3760.6,3760.2,0.1262]
[1717463401861,0.55743845,3760.5,3760.4,0.1262]
[1717463402037,0.66957303,3760.5,3760.4,0.1262]
[1717463404745,0.11213458,3760.5,3760.4,0.1262]
[1717463405008,0.68333519,3760.5,3760.4,0.1262]
[1717463405149,1.15694896,3760.5,3760.4,0.1262]
[1717463405350,2.5506815,3760.5,3760.4,0.1262]
[1717463405588,2.07706773,3760.5,3760.4,0.1262]
[1717463406348,0.68333519,3760.5,3760.4,0.1262]
[1717463406672,0.68333519,3760.5,3759.9,0.1262]
[1717463406878,0.55759914,3760.0,3759.9,0.1262]
[1717463407079,0.55759914,3760.1,3759.9,0.1262]
[1717463407333,0.55759914,3760.1,3760.0,1.136784]
[1717463407589,0.55759914,3760.3,3760.2,0.1262]
[1717463407791,0.85428009,3760.3,3760.2,0.1262]
[1717463408242,0.29668095,3760.3,3760.2,0.1262]
[1717463408442,0.83639871,3760.6,3760.4,0.1262]
[1717463408443,0.55759914,3760.5,3760.4,0.1262]
[1717463408685,0.8541463,3760.5,3760.4,0.1262]
[1717463408991,0.55759914,3760.9,3760.5,2.78542]
[1717463409346,0.55759914,3761.0,3760.5,2.78542]
[1717463411695,0.55759914,3761.0,3760.5,0.1262]
[1717463411996,0.83639871,3761.2,3760.4,2.3579]
[1717463411997,0.55759914,3761.1,3760.7,0.1262]
[1717463412147,0.22448164,3761.0,3760.7,0.1262]
[1717463412344,0.55759914,3761.1,3760.7,0.1262]
[1717463412587,0.55759914,3761.1,3761.0,0.1262]
[1717463412796,0.78206692,3761.1,3761.0,0.1262]
[1717463413152,0.78206692,3761.1,3761.0,0.404713]
[1717463414487,0.78206692,3761.1,3761.0,0.1262]
[1717463415015,0.22446778,3761.1,3761.0,0.1262]
[1717463415422,0.78169401,3761.1,3761.0,0.1262]
[1717463416714,0.78168837,3761.1,3761.0,0.1262]
[1717463417512,0.22446214,3761.1,3761.0,0.1262]
[1717463417997,0.78176601,3761.1,3761.0,0.1262]
[1717463418531,0.7818013,3761.1,3761.0,2.682313]
[1717463419986,0.7818013,3761.1,3761.0,0.404713]
[1717463420136,0.7818013,3761.1,3761.0,0.1262]
[1717463420320,0.22446214,3761.1,3761.0,0.1262]
[1717463420519,1.06086085,3761.1,3761.0,0.1262]
[1717463420947,0.22446214,3761.1,3761.0,0.1262]
[1717463421334,1.17322381,3761.1,3761.0,0.1262]
[1717463422443,0.3368251,3761.1,3761.0,0.1262]
[1717463423562,1.17322381,3761.1,3761.0,0.1262]
[1717463423757,0.3368251,3761.1,3761.0,0.1262]
[1717463423974,1.17322381,3761.1,3761.0,0.1262]
[1717463426645,1.06086085,3761.1,3761.0,0.1262]
[1717463427594,1.17318698,3761.1,3761.0,0.1262]
[1717463427793,1.17318698,3761.1,3761.0,2.738813]
[1717463427944,0.78190843,3761.1,3761.0,2.738813]
[1717463429478,0.22446214,3761.1,3761.0,2.738813]
[1717463430350,0.55744629,3761.2,3761.1,2.71499]
[1717463430549,0.78193516,3761.2,3761.1,2.71499]
[1717463430775,0.78193516,3761.2,3761.1,3.2477503]
[1717463431144,0.89429446,3761.2,3761.1,3.2477503]
[1717463431449,0.78193516,3761.2,3761.1,3.2477503]
[1717463434261,0.22448887,3761.2,3761.1,3.2477503]
[1717463434789,0.78193516,3761.2,3761.1,3.2477503]
[1717463435092,0.14033797,3761.2,3761.1,38.2477503]
[1717463435389,0.14033797,3761.2,3761.1,38.8147503]
[1717463435555,0.55744629,3761.5,3761.1,38.8147503]
[1717463435752,0.22437346,3761.4,3761.3,2.71485]
[1717463435985,0.14036007,3761.4,3761.3,2.71485]
[1717463436790,0.55744629,3761.6,3761.3,2.71485]
[1717463436990,0.1884134,3761.5,3761.3,2.71485]
[1717463437195,0.55744629,3761.6,3761.3,2.71485]
[1717463437492,0.55744629,3761.7,3761.6,0.0562]
[1717463437694,0.74582429,3761.7,3761.6,0.0562]
[1717463438868,0.188378,3761.7,3761.6,0.0562]
[1717463439263,0.55744629,3761.8,3761.6,0.0562]
[1717463439495,0.18832265,3761.7,3761.6,0.0562]
[1717463439792,0.18832265,3761.7,3761.6,0.44863623]
[1717463440179,0.18832092,3761.7,3761.6,0.44863623]
[1717463440383,0.55744629,3761.8,3761.7,2.71457]
[1717463440581,0.55744629,3762.2,3762.1,0.0562]
[1717463440781,0.74570652,3762.2,3762.1,0.6232]
[1717463440985,0.55744629,3762.6,3762.3,0.0562]
[1717463441191,0.55744629,3762.6,3762.5,0.0562]
[1717463441392,0.55744629,3762.7,3762.5,0.0562]
[1717463441593,0.55744629,3762.8,3762.6,0.0562]
[1717463441797,0.55744629,3763.0,3762.8,0.0562]
[1717463442064,0.55744629,3763.1,3762.8,0.0562]
[1717463443321,2.82284629,3763.2,3762.8,0.0562]
[1717463443646,2.2654,3763.2,3762.8,0.0562]
[1717463444337,0.08244917,3763.1,3762.8,0.0562]
[1717463444487,2.82284629,3763.2,3762.8,0.0562]
[1717463444687,2.2654,3763.2,3762.8,0.0562]
[1717463445619,2.8970395,3763.2,3762.9,0.0562]
[1717463445926,0.55744629,3763.0,3762.9,0.0562]
[1717463446110,0.63984043,3763.0,3762.9,0.0562]
[1717463446486,3.20559871,3763.0,3762.9,0.0562]
[1717463446687,3.28799285,3763.0,3762.4,0.0562]
[1717463446895,0.555437,3762.8,3762.4,0.0562]
[1717463447100,0.08239414,3762.7,3762.4,0.0562]
[1717463447297,0.555437,3762.8,3762.4,0.0562]
[1717463447496,0.08247909,3762.7,3762.4,0.0562]
[1717463447802,0.555437,3762.8,3762.5,0.0562]
[1717463448000,2.924637,3763.0,3762.5,0.0562]
[1717463448203,0.08243486,3762.9,3762.5,0.0562]
[1717463448519,2.924637,3763.0,3762.5,0.0562]
[1717463448679,0.08243402,3762.9,3762.2,0.0562]
[1717463448881,2.924637,3763.0,3762.2,0.0562]
[1717463449129,0.0824345,3762.9,3762.2,0.0562]
[1717463449290,2.924637,3763.0,3762.4,0.0562]
[1717463449490,2.95509753,3763.0,3762.4,0.0562]
[1717463450027,3.51053453,3763.0,3762.4,0.0562]
[1717463450231,2.924637,3763.0,3762.4,0.0562]
[1717463450586,2.3692,3763.0,3762.4,0.0562]
[1717463451335,0.13213036,3762.9,3762.4,0.0562]
[1717463452330,0.13215253,3762.8,3762.4,0.0562]
[1717463452704,2.65734,3763.2,3762.4,0.0562]
[1717463452907,0.13215253,3762.7,3762.4,0.0562]
[1717463453103,3.212777,3763.2,3762.5,2.65777]
[1717463453432,0.13215253,3763.1,3762.5,2.65777]
[1717463456036,2.401,3763.4,3762.5,2.65777]
[1717463456250,0.13238149,3763.0,3762.5,2.65777]
[1717463456537,2.401,3763.4,3762.5,2.65777]
[1717463456704,3.04599257,3763.4,3762.5,2.65777]
[1717463457120,0.13239996,3763.3,3762.5,2.65777]
[1717463460012,0.13239996,3763.3,3762.8,2.65759]
[1717463462770,2.65741,3763.1,3762.2,2.65801]
[1717463463065,2.65759,3762.9,3762.1,7.32]
[1717463463650,0.1237561,3762.8,3761.9,2.65822]
[1717463465336,2.65767,3762.7,3761.9,2.65822]
[1717463465729,0.1235071,3762.6,3761.9,2.65822]
[1717463467283,4.92172,3762.5,3761.6,7.32]
[1717463467429,0.492172,3762.4,3761.6,7.32]
[1717463467623,0.61572,3762.4,3761.6,7.32]
[1717463468081,0.492172,3762.4,3761.6,7.32]
[1717463469360,4.92172,3762.5,3761.6,7.32]
[1717463469563,4.92172,3762.5,3761.5,4.94367]
[1717463469969,4.92172,3762.5,3761.5,2.65847]
[1717463470348,0.08257526,3762.4,3761.5,2.65847]
[1717463470678,5.477157,3762.5,3761.5,2.65847]
[1717463470976,0.81721806,3762.4,3761.5,2.65847]
[1717463471171,2.65795,3762.3,3761.5,2.65847]
[1717463471372,0.08259933,3762.2,3761.5,2.65847]
[1717463471546,0.1235034,3762.2,3761.5,2.65847]
[1717463471965,0.76157125,3762.2,3761.5,2.65847]
[1717463472147,0.555437,3762.2,3761.5,2.65847]
[1717463472331,0.63807103,3762.2,3761.5,2.65847]
[1717463473232,0.63807103,3762.2,3761.6,0.266]
[1717463473678,3.213387,3762.3,3761.6,0.266]
[1717463473989,2.65795,3762.3,3761.6,0.558447]
[1717463474488,3.213387,3762.3,3761.6,0.558447]
[1717463474635,2.65795,3762.3,3761.6,0.558447]
[1717463475072,3.213387,3762.3,3761.6,0.558447]
[1717463475448,2.2599,3762.1,3761.6,0.266]
[1717463476146,0.1230648,3762.0,3761.6,0.266]
[1717463476584,2.815337,3762.1,3761.6,0.266]
[1717463477289,0.08270233,3762.0,3761.6,0.266]
[1717463477462,2.815337,3762.1,3761.6,0.266]
[1717463477784,0.08271212,3762.0,3761.6,0.266]
[1717463477992,2.815337,3762.1,3761.6,0.266]
[1717463478185,0.08270996,3762.0,3761.6,0.266]
[1717463478388,2.815337,3762.1,3761.6,0.266]
[1717463478592,2.2599,3762.1,3761.6,0.266]
[1717463479401,2.815337,3762.1,3761.6,0.266]
[1717463480453,0.08271291,3762.0,3761.6,0.266]
[1717463480651,2.815337,3762.1,3761.6,0.266]
[1717463480852,0.08271254,3762.0,3761.6,0.266]
[1717463481191,2.815337,3762.1,3761.6,0.266]
[1717463481355,2.815337,3762.1,3761.7,0.266]
[1717463481356,0.08272431,3762.0,3761.7,0.266]
[1717463481556,2.815337,3762.1,3761.7,0.266]
[1717463481756,0.08272439,3762.0,3761.7,0.266]
[1717463481956,0.1230648,3762.0,3761.7,0.266]
[1717463482702,0.1230648,3762.0,3761.3,0.266]
[1717463482867,2.815337,3762.1,3761.5,0.266]
[1717463483070,0.08273075,3762.0,3761.5,0.266]
[1717463483288,2.815337,3762.1,3761.5,0.266]
[1717463483488,0.08273622,3762.0,3761.5,0.266]
[1717463483798,0.555437,3762.0,3761.5,0.266]
[1717463484003,2.815337,3762.1,3761.5,0.266]
[1717463484154,0.63817229,3762.0,3761.5,0.7232691]
[1717463484496,0.555437,3762.0,3761.5,0.7232691]
[1717463485997,0.0827428,3761.9,3761.5,0.7232691]
[1717463486177,0.555437,3762.0,3761.5,0.7232691]
[1717463486384,0.555437,3762.0,3761.5,1.2902691]
[1717463486956,0.08275711,3761.9,3761.5,1.2902691]
[1717463487157,0.555437,3762.0,3761.5,1.2902691]
[1717463487975,0.08275702,3761.9,3761.5,0.7232691]
[1717463488305,0.555437,3762.0,3761.5,0.266]
[1717463488451,0.08275827,3761.9,3761.5,0.266]
[1717463488656,0.555437,3762.0,3761.5,0.266]
[1717463488893,0.08275848,3761.9,3761.5,0.266]
[1717463489101,0.12302764,3761.8,3761.5,0.266]
[1717463489304,0.555437,3762.0,3761.5,0.266]
[1717463489794,0.12302764,3761.9,3761.5,0.266]
[1717463490212,0.12302764,3761.9,3761.5,0.7232691]
[1717463494708,2.815337,3762.1,3761.5,0.7232691]
[1717463494974,0.76128327,3762.0,3761.5,0.266]
[1717463495200,0.67853898,3762.0,3761.5,0.266]
[1717463496029,0.08277007,3761.9,3761.5,0.266]
[1717463496236,0.67853898,3762.0,3761.5,0.266]
[1717463496410,0.08277126,3761.9,3761.5,0.266]
[1717463496616,0.12310198,3761.9,3761.5,0.266]
[1717463500410,0.12310198,3761.9,3761.5,0.615152]
[1717463500757,0.12310198,3761.9,3761.8,0.266]
[1717463501463,0.555437,3762.2,3761.8,0.266]
[1717463501644,0.12305367,3761.9,3761.8,2.9243]
[1717463501850,0.555437,3762.2,3761.8,2.9243]
[1717463502163,0.06926686,3762.1,3761.8,2.9243]
[1717463502366,0.67849067,3762.1,3761.8,2.9243]
[1717463502968,0.12305367,3762.1,3761.8,2.9243]
[1717463503334,0.67849067,3762.1,3761.8,2.9243]
[1717463503865,0.12305367,3762.1,3761.8,2.9243]
[1717463504435,0.06926676,3762.0,3761.8,2.9243]
[1717463504652,0.67849067,3762.1,3761.8,2.9243]
[1717463504848,0.1231503,3761.9,3761.8,2.9243]
[1717463505113,0.555437,3762.1,3761.8,2.9243]
[1717463505526,0.1231503,3762.0,3761.8,2.9243]
[1717463506067,0.1231503,3762.0,3761.8,3.51287]
[1717463506768,0.1231503,3761.9,3761.8,3.51287]
[1717463506971,0.555437,3762.2,3761.8,3.51287]
[1717463507140,0.1231503,3761.9,3761.8,3.51287]
[1717463507344,0.555437,3762.2,3761.8,3.51287]
[1717463507523,0.1231503,3761.9,3761.8,3.51287]
[1717463507723,0.555437,3762.2,3762.1,2.65808]
[1717463507973,0.555437,3762.5,3762.4,2.92387]
[1717463508273,0.555437,3762.7,3762.4,2.92387]
[1717463508959,0.06925343,3762.6,3762.4,2.92387]
[1717463509143,0.555437,3762.8,3762.6,2.92373]
[1717463509343,0.555437,3763.0,3762.6,3.49073]
[1717463509577,0.06924767,3762.9,3762.6,3.839803]
[1717463509751,0.555437,3763.0,3762.6,3.839803]
[1717463509950,0.62468582,3762.9,3762.6,3.839803]
[1717463510258,0.555437,3763.0,3762.8,2.92359]
[1717463510576,0.06924924,3762.9,3762.8,2.92359]
[1717463510728,0.555437,3763.0,3762.8,2.92359]
[1717463511128,0.12382298,3762.9,3762.8,3.5527263]
[1717463511329,0.555437,3763.0,3762.8,4.1197263]
[1717463511593,2.3465,3764.0,3762.8,4.1197263]
[1717463511594,0.555437,3763.5,3763.1,2.92338]
[1717463511749,0.06924193,3763.4,3763.1,2.92338]
[1717463511950,0.555437,3763.5,3763.1,2.92338]
[1717463512169,0.06924328,3763.4,3763.3,0.266]
[1717463512353,0.555437,3763.5,3763.3,0.266]
[1717463513170,0.555437,3763.5,3763.2,0.266]
[1717463513372,0.555437,3763.6,3763.2,0.266]
[1717463513524,0.06924368,3763.5,3763.2,0.266]
[1717463513727,0.555437,3763.6,3763.2,0.266]
[1717463513957,0.06924366,3763.5,3763.2,0.266]
[1717463514158,0.555437,3763.6,3763.2,0.266]
[1717463514547,0.555437,3763.7,3763.2,0.266]
[1717463514775,0.0692436,3763.6,3763.2,0.266]
[1717463514937,2.4887,3763.5,3763.2,0.266]
[1717463515242,3.0557,3763.5,3763.3,0.266]
[1717463515451,0.62468262,3763.4,3763.3,0.266]
[1717463515764,0.06924562,3763.4,3763.3,0.266]
[1717463515996,0.46104127,3763.4,3763.3,0.266]
[1717463516487,0.46104487,3763.4,3763.3,0.266]
[1717463517151,0.46104487,3763.4,3762.8,0.266]
[1717463517334,3.044137,3763.5,3762.8,0.266]
[1717463518184,5.701287,3763.5,3762.8,0.266]
[1717463518351,0.567,3763.1,3762.9,0.266]
[1717463519067,0.555437,3763.2,3762.9,0.266]
[1717463519248,0.567,3763.1,3763.0,0.266]
[1717463519447,3.56749238,3763.1,3763.0,0.266]
[1717463519870,3.84845409,3763.1,3763.0,0.266]
[1717463520077,3.28145409,3763.1,3763.0,0.266]
[1717463520315,4.83542633,3763.1,3763.0,0.266]
[1717463520617,3.99902762,3763.1,3763.0,0.266]
[1717463521025,7.20282633,3763.1,3763.0,0.266]
[1717463521895,6.72114674,3763.1,3763.0,0.266]
[1717463522424,2.65765,3762.8,3761.9,2.65816]
[1717463522648,3.21354358,3762.8,3761.9,3.213876]
[1717463522806,2.65765,3762.8,3761.9,3.213876]
[1717463523132,2.65765,3762.8,3761.9,2.65816]
[1717463523327,3.0575,3762.7,3761.9,2.65816]
[1717463523673,2.65774,3762.6,3761.9,2.65816]
[1717463523879,0.06926598,3762.5,3761.9,2.65816]
[1717463524134,3.21363358,3762.6,3761.9,2.65816]
[1717463524277,0.77976565,3762.5,3761.9,2.65816]
[1717463524478,0.7104974,3762.5,3761.9,2.65816]
[1717463526278,0.12352941,3762.4,3761.9,2.65816]
[1717463527112,0.12352941,3762.4,3761.5,2.65845]
[1717463527113,2.4332,3762.3,3761.5,2.65845]
[1717463527317,0.567,3762.2,3761.5,2.65845]
[1717463527476,5.64704358,3762.3,3761.5,2.65845]
[1717463527683,0.12352941,3762.1,3761.5,2.65845]
[1717463527883,0.12356284,3762.2,3761.5,2.65845]
[1717463529483,0.69056284,3762.2,3761.5,2.65845]
[1717463529890,0.12356284,3762.2,3761.5,2.65845]
[1717463530596,0.74873027,3762.2,3761.5,2.65845]
[1717463530796,0.67945642,3762.2,3761.5,2.65845]
[1717463532115,0.12356284,3762.2,3761.5,2.65845]
[1717463532335,0.74872937,3762.2,3761.5,2.65845]
[1717463532632,0.12356284,3762.2,3761.5,2.65845]
[1717463533699,0.74872973,3762.2,3761.5,2.65845]
[1717463533914,0.67945642,3762.2,3761.5,2.65845]
[1717463537155,0.67945642,3762.2,3761.6,0.266]
[1717463537363,1.46765084,3762.2,3761.6,0.266]
[1717463539474,0.67945642,3762.2,3761.6,0.266]
[1717463539963,0.12356284,3762.2,3761.6,0.266]
[1717463541460,0.12356284,3762.2,3762.0,0.266]
[1717463541758,0.55589358,3762.4,3762.0,2.6888]
[1717463541957,0.12317261,3762.1,3762.0,2.6888]
[1717463542167,0.55589358,3762.7,3762.2,0.266]
[1717463542365,0.06926341,3762.6,3762.2,0.266]
[1717463542661,0.12324325,3762.6,3762.2,0.266]
[1717463542888,2.97069358,3762.8,3762.2,0.266]
[1717463542889,0.55589358,3762.7,3762.2,0.266]
[1717463543186,0.12324325,3762.5,3762.2,0.266]
[1717463543403,0.12324325,3762.4,3762.2,0.9108566]
[1717463543752,0.55589358,3762.7,3762.2,0.9108566]
[1717463543997,0.12334358,3762.3,3762.2,0.266]
[1717463544287,0.12334358,3762.6,3762.2,0.266]
[1717463544448,0.55589358,3762.7,3762.2,0.266]
[1717463544644,0.12334358,3762.5,3762.2,0.266]
[1717463544973,0.55589358,3762.7,3762.2,0.266]
[1717463545317,0.62515625,3762.7,3762.2,0.266]
[1717463545499,0.12334358,3762.6,3762.2,0.266]
[1717463545990,0.12334358,3762.6,3762.2,0.833]
[1717463546168,0.12334358,3762.6,3762.2,1.424387]
[1717463547100,0.55589358,3762.8,3762.2,1.424387]
[1717463547262,0.62515222,3762.9,3762.2,1.424387]
[1717463547467,0.55589358,3762.9,3762.2,1.424387]
[1717463547801,0.06925738,3762.8,3762.4,0.833]
[1717463547953,2.97069358,3763.1,3762.4,0.833]
[1717463548144,0.12333615,3762.8,3762.4,0.833]
[1717463548360,0.55589358,3763.1,3762.6,3.1564]
[1717463548595,0.12343278,3762.7,3762.6,3.1564]
[1717463548898,0.55589358,3763.1,3762.6,3.23587157]
[1717463549267,0.12343278,3763.0,3762.6,3.80287157]
[1717463549477,0.12343278,3763.0,3762.8,0.266]
[1717463549850,0.55589358,3763.2,3762.8,0.266]
[1717463550057,0.12343278,3762.9,3762.8,0.266]
[1717463550299,0.55589358,3763.2,3762.8,1.47905316]
[1717463550514,0.55589358,3763.5,3762.8,1.47905316]
[1717463550722,0.06924711,3763.4,3762.8,1.47905316]
[1717463550920,0.06925015,3763.3,3762.8,0.833]
[1717463551124,0.55589358,3763.4,3762.8,0.833]
[1717463551610,0.62514369,3763.4,3762.8,0.833]
[1717463551795,0.55589358,3763.4,3762.8,0.833]
[1717463552009,0.06924978,3763.3,3762.8,0.833]
[1717463552175,0.55589358,3763.4,3762.8,0.833]
[1717463552393,0.55589358,3763.5,3762.8,0.833]
[1717463552607,0.06924861,3763.4,3762.8,0.833]
[1717463552987,0.62514331,3763.4,3762.8,0.833]
[1717463553193,0.12354425,3763.3,3762.8,0.833]
[1717463553507,0.12354425,3763.3,3762.8,35.833]
[1717463553712,0.12354425,3763.3,3762.8,38.48330545]
[1717463553878,0.55589358,3763.5,3762.8,38.48330545]
[1717463554074,0.06924669,3763.5,3763.0,0.833]
[1717463554294,0.12354795,3763.4,3763.0,0.833]
[1717463554501,0.12354795,3763.4,3762.9,2.6575]
[1717463554502,0.12354795,3763.4,3763.2,0.266]
[1717463554816,0.55589358,3763.7,3763.3,2.5651]
[1717463555042,0.55589358,3763.8,3763.3,3.1321]
[1717463555179,0.55589358,3763.9,3763.3,3.1321]
[1717463555573,0.55589358,3764.0,3763.3,3.1321]
[1717463555892,0.0692377,3763.9,3763.3,3.77857157]
[1717463556307,0.55589358,3764.1,3763.5,0.833]
[1717463556476,0.06923665,3764.0,3763.5,0.833]
[1717463556822,0.12358881,3764.0,3763.5,0.833]
[1717463557956,5.59035358,3764.2,3763.5,0.833]
[1717463558418,0.12358881,3764.1,3763.5,0.833]
[1717463558621,2.93369358,3764.2,3763.5,0.833]
[1717463558951,0.12358881,3764.0,3763.5,0.833]
[1717463559262,2.3778,3764.2,3763.5,1.47657316]
[1717463559561,2.3778,3764.2,3763.7,0.266]
[1717463559562,0.12358881,3763.9,3763.7,0.266]
[1717463559859,2.3778,3764.2,3763.7,0.266]
[1717463560020,0.12377828,3763.8,3763.7,0.266]
[1717463560360,2.3778,3764.2,3763.7,0.266]
[1717463560558,0.12377828,3763.8,3763.7,0.266]
[1717463561034,2.3778,3764.2,3763.7,0.266]
[1717463561232,0.55589358,3764.4,3763.9,0.266]
[1717463561435,0.46131139,3764.4,3763.9,0.266]
[1717463565078,2.65653,3764.3,3764.0,0.266]
[1717463565983,2.65653,3764.3,3764.1,0.266]
[1717463567078,2.65653,3764.3,3764.2,0.266]
[1717463567280,3.41320753,3764.3,3764.2,0.266]
[1717463567845,4.10455803,3764.3,3764.2,0.266]
[1717463568154,4.10455803,3764.3,3763.5,0.266]
[1717463568355,3.3478805,3764.3,3763.5,0.266]
[1717463570275,2.7808805,3764.3,3763.5,0.266]
[1717463573090,2.257,3764.2,3763.5,0.266]
[1717463573250,2.38126507,3764.2,3763.5,0.266]
[1717463574160,0.12426507,3764.2,3763.5,0.266]
[1717463574367,0.12426507,3764.2,3763.5,0.833]
[1717463578505,0.12426507,3764.2,3763.5,1.83154077]
[1717463579203,0.12426507,3764.2,3763.5,1.25261777]
[1717463579507,2.65653,3764.3,3763.5,1.25261777]
[1717463580167,0.12426877,3764.2,3763.5,1.25261777]
[1717463581413,0.12426877,3764.2,3763.5,0.68561777]
[1717463581719,0.12426877,3764.2,3763.5,0.266]
[1717463582308,2.4275,3764.1,3763.5,0.266]
[1717463582694,2.4275,3764.1,3763.1,1.01406285]
[1717463582695,0.567,3763.7,3763.6,0.266]
[1717463582896,2.9945,3763.7,3763.6,0.266]
[1717463583093,3.11878733,3763.7,3763.6,0.266]
[1717463583281,3.74392737,3763.7,3763.6,0.266]
[1717463583697,3.74392737,3763.7,3763.0,0.266]
[1717463584010,0.567,3763.4,3763.0,0.266]
[1717463584220,1.29045977,3763.6,3763.0,0.266]
[1717463584394,1.84635335,3763.6,3763.0,0.266]
[1717463584599,0.12428733,3763.5,3763.0,0.266]
[1717463584796,0.12428733,3763.5,3762.9,0.266]
[1717463585433,2.4792,3763.2,3762.9,0.266]
[1717463585679,0.12408673,3763.1,3762.9,0.266]
[1717463585999,0.12408673,3763.1,3762.5,0.266]
[1717463586309,2.4792,3763.2,3762.5,0.266]
[1717463587323,0.55589358,3763.3,3762.8,2.6666]
[1717463587482,3.31044037,3763.5,3762.8,3.255726]
[1717463587483,0.1238267,3763.1,3762.8,3.255726]
[1717463587821,0.55589358,3763.5,3762.8,3.822726]
[1717463587981,0.12378954,3763.0,3762.8,3.822726]
[1717463588176,0.55589358,3763.4,3762.8,3.822726]
[1717463588528,0.55589358,3763.5,3762.8,3.822726]
[1717463588816,0.12379326,3763.3,3762.8,3.822726]
[1717463589027,0.55589358,3763.5,3762.8,3.822726]
[1717463589233,0.12379326,3763.2,3762.8,3.822726]
[1717463589418,0.55589358,3763.5,3763.0,0.266]
[1717463589625,0.12379326,3763.1,3763.0,0.266]
[1717463589795,0.55589358,3763.5,3763.0,0.266]
[1717463589995,0.12379326,3763.1,3763.0,0.266]
[1717463590194,0.55589358,3763.5,3763.0,0.266]
[1717463590492,0.06924563,3763.4,3763.0,0.266]
[1717463590707,0.12379326,3763.4,3763.0,0.266]
[1717463590906,0.67968684,3763.4,3763.0,0.266]
[1717463591443,0.06924664,3763.3,3763.0,0.266]
[1717463591605,0.67968684,3763.4,3763.0,0.266]
[1717463591818,0.06924664,3763.3,3763.0,0.266]
[1717463592023,0.12379326,3763.3,3763.0,0.266]
[1717463593228,0.67968684,3763.3,3763.0,0.266]
[1717463593434,0.67968684,3763.3,3763.0,0.855112]
[1717463593741,0.55589358,3763.3,3763.0,0.855112]
[1717463594329,0.12379326,3763.2,3763.0,0.855112]
[1717463594546,0.55589358,3763.3,3763.0,0.855112]
[1717463595153,0.12379326,3763.2,3763.0,0.855112]
[1717463595316,0.55589358,3763.3,3763.0,0.855112]
[1717463595521,0.06924608,3763.2,3763.0,0.855112]
[1717463595718,0.55589358,3763.3,3763.0,0.855112]
[1717463595932,0.06924609,3763.2,3763.0,0.855112]
[1717463596114,0.55589358,3763.3,3763.0,0.855112]
[1717463596313,0.06924604,3763.2,3763.0,0.855112]
[1717463596528,0.55589358,3763.3,3763.0,0.855112]
[1717463596728,0.0692461,3763.2,3763.0,0.855112]
[1717463596929,0.55589358,3763.3,3763.0,0.855112]
[1717463597225,0.06924659,3763.2,3763.0,0.855112]
[1717463597446,0.55589358,3763.3,3763.0,0.855112]
[1717463597743,0.06924613,3763.2,3763.0,0.855112]
[1717463597915,0.55589358,3763.3,3763.0,0.855112]
[1717463598558,0.55589358,3763.4,3763.0,0.855112]
[1717463598850,0.06924345,3763.3,3763.0,0.855112]
[1717463599026,0.12392701,3763.2,3763.0,0.855112]
[1717463599355,0.55589358,3763.3,3763.0,0.855112]
[1717463599713,0.12392701,3763.2,3763.0,0.855112]
[1717463600253,0.55589358,3763.3,3763.0,0.855112]
[1717463600452,0.12392701,3763.2,3763.0,0.855112]
[1717463601157,0.55589358,3763.4,3763.0,0.855112]
[1717463601328,0.06924288,3763.3,3763.0,0.855112]
[1717463601528,0.55589358,3763.4,3763.2,0.266]
[1717463601750,0.06924286,3763.3,3763.2,0.266]
[1717463603161,0.06924286,3763.3,3763.2,0.6172482]
[1717463603319,0.55589358,3763.6,3763.3,5.33284]
[1717463603649,0.55589358,3763.6,3763.4,0.833]
[1717463603845,0.55589358,3763.7,3763.4,0.833]
[1717463604215,0.55589358,3763.7,3763.4,0.266]
[1717463605233,0.55589358,3763.7,3763.4,0.855984]
[1717463605436,0.55589358,3763.8,3763.4,1.422984]
[1717463605861,0.55589358,3763.9,3763.6,0.833]
[1717463606030,0.55589358,3763.9,3763.6,0.266]
[1717463606222,0.55589358,3764.0,3763.6,0.266]
[1717463606466,0.55589358,3763.9,3763.6,0.266]